fUST/lending_fUST_20251018
["ID","MTS","AMOUNT","RATE_DAILY","PERIOD"]
[391717619,1760746640184,775.11427265,0.00025205,2]
[391717620,1760746640210,4224.88572735,0.00025205,2]
[391717621,1760746648457,300.0,0.000252,2]
[391717622,1760746649790,150.0,0.0001945,2]
[391717623,1760746650216,150.0,0.00020376,2]
[391717624,1760746650719,150.0,0.00021303,2]
[391717625,1760746651103,150.0,0.00022229,2]
[391717626,1760746651513,150.0,0.00023155,2]
[391717627,1760746652197,150.0,0.00024081,2]
[391717628,1760746652596,150.0,0.00025007,2]
[391717629,1760746657150,-161.7,0.00025934,2]
[391717630,1760746660717,300.0,0.000252,2]
[391717631,1760746663573,4125.12427265,0.00025205,2]
[391717632,1760746663600,874.87572735,0.00025205,2]
[391717633,1760746673874,300.0,0.000252,2]
[391717634,1760746685325,300.0,0.000252,2]
[391717635,1760746697018,300.0,0.000252,2]
[391717636,1760746706135,-718.62430322,0.00026405,2]
[391717637,1760746706167,-153.0,0.00026433,2]
[391717638,1760746706199,-153.0,0.00026433,2]
[391717639,1760746706230,-2083.22,0.00026461,2]
[391717640,1760746706262,-691.6926398,0.00026604,2]
[391717641,1760746706293,-300.0,0.00026681,2]
[391717642,1760746706572,-4007.421993,0.00026682,2]
[391717643,1760746706753,-1985.166014,0.00026682,2]
[391717644,1760746706785,-2035.8519991,0.00026683,2]
[391717645,1760746710233,-1957.9739738,0.00026683,2]
[391717646,1760746711168,-53.25242681,0.00026683,2]
[391717647,1760746715166,-10000.01,0.00026683,2]
[391717648,1760746715276,-10000.01,0.00026683,2]
[391717649,1760746715391,-10000.01,0.00026683,2]
[391717650,1760746715505,-10000.01,0.00026683,2]
[391717651,1760746715626,-10000.01,0.00026683,2]
[391717652,1760746715743,-1885.74494881,0.00026683,2]
[391717653,1760746715767,-6228.52010238,0.00026683,2]
[391717654,1760746715901,-151.0,0.00026683,3]
[391717655,1760746715935,-151.0,0.00026683,3]
[391717656,1760746715964,-151.0,0.00026683,3]
[391717657,1760746715994,-1781.93,0.00026683,10]
[391717658,1760746716092,-5530.15,0.00026688,2]
[391717659,1760746716108,-10000.01,0.00026688,2]
[391717660,1760746718058,-10000.01,0.00026688,2]
[391717661,1760746718876,-10000.01,0.00026688,2]
[391717662,1760746729440,295.53,0.00026684,120]
[391717663,1760746732767,5000.0,0.00025205,2]
[391717664,1760746756349,5000.0,0.00025205,2]
[391717665,1760746765745,0.01,0.00025205,2]
[391717666,1760746765771,417.14472785,0.00025205,2]
[391717667,1760746768225,300.0,0.000252,2]
[391717668,1760746778398,5000.0,0.00025205,2]
[391717669,1760746785783,150.0,0.00019188,2]
[391717670,1760746786615,150.0,0.00020102,2]
[391717671,1760746787200,150.0,0.00021015,2]
[391717672,1760746787562,150.0,0.00021929,2]
[391717673,1760746788045,150.0,0.00022843,2]
[391717674,1760746788445,150.0,0.00023756,2]
[391717675,1760746788850,150.0,0.0002467,2]
[391717676,1760746791541,-160.51,0.00025584,2]
[391717677,1760746801078,3232.86527215,0.00025205,2]
[391717678,1760746801104,1767.13472785,0.00025205,2]
[391717679,1760746812415,5000.0,0.00024107,2]
[391717680,1760746812573,3178.09618532,0.00019773,2]
[391717681,1760746828321,54.77908683,0.00025,2]
[391717682,1760746828347,1735.09380717,0.00025,2]
[391717683,1760746857395,150.0,0.00019117,2]
[391717684,1760746857789,150.0,0.00020028,2]
[391717688,1760746997029,-153.0,0.00026433,2]
[391717689,1760746997060,-223.9952309,0.00026524,2]
[391717690,1760746997092,-461.12842654,0.00026573,2]
[391717691,1760746997124,-1723.97,0.00026583,10]
[391717692,1760746997155,-1436.64,0.00026583,10]
[391717693,1760746997187,-805.34268512,0.00026583,10]
[391717694,1760746997450,-391.85731488,0.00026583,10]
[391717695,1760746997480,-300.0,0.0002659,2]
[391717696,1760746997510,-1200.0,0.00026591,2]
[391717697,1760746997539,-263.75380753,0.00026592,2]
[391717698,1760746997569,-500.0,0.00026592,2]
[391717699,1760746997600,-161.35180029,0.00026592,2]
[391717700,1760746997631,-197.36444887,0.00026592,2]
[391717701,1760746997662,-500.0,0.00026592,2]
[391717702,1760746997694,-500.0,0.00026592,2]
[391717703,1760746997725,-500.0,0.00026592,2]
[391717704,1760746997757,-471.35525686,0.00026592,2]
[391717705,1760746997809,-28.64474314,0.00026592,2]
[391717706,1760746997843,-500.0,0.00026592,2]
[391717707,1760746997878,-500.0,0.00026592,2]
[391717708,1760746997912,-500.0,0.00026592,2]
[391717709,1760746997947,-500.0,0.00026592,2]
[391717710,1760746997980,-500.0,0.00026592,2]
[391717711,1760746998013,-500.0,0.00026592,2]
[391717712,1760746998047,-500.0,0.00026592,2]
[391717713,1760746998245,-500.0,0.00026592,2]
[391717714,1760746998281,-500.0,0.00026592,2]
[391717715,1760746998315,-442.72051372,0.00026592,2]
[391717716,1760746998494,-57.27948628,0.00026592,2]
[391717717,1760746998527,-500.0,0.00026592,2]
[391717718,1760746998559,-500.0,0.00026592,2]
[391717719,1760746998592,-500.0,0.00026592,2]
[391717720,1760746998624,-500.0,0.00026592,2]
[391717721,1760746998656,-420.28650031,0.00026592,2]
[391717722,1760746998690,-500.0,0.00026592,2]
[391717723,1760746998722,-500.0,0.00026592,2]
[391717724,1760746998755,-500.0,0.00026592,2]
[391717725,1760746998788,-500.0,0.00026592,2]
[391717726,1760746998825,-500.0,0.00026592,2]
[391717727,1760746998951,-200.82733388,0.00026592,2]
[391717728,1760746999078,-299.17266612,0.00026592,2]
[391717729,1760746999120,-500.0,0.00026592,2]
[391717730,1760746999156,-500.0,0.00026592,2]
[391717731,1760746999190,-500.0,0.00026592,2]
[391717732,1760746999223,-500.0,0.00026592,2]
[391717733,1760746999257,-500.0,0.00026592,2]
[391717734,1760746999291,-500.0,0.00026592,2]
[391717735,1760746999325,-500.0,0.00026592,2]
[391717736,1760746999357,-500.0,0.00026592,2]
[391717737,1760746999392,-500.0,0.00026592,2]
[391717738,1760746999546,-500.0,0.00026592,2]
[391717739,1760746999577,-500.0,0.00026592,2]
[391717740,1760746999610,-500.0,0.00026592,2]
[391717741,1760746999641,-500.0,0.00026592,2]
[391717742,1760746999672,-500.0,0.00026592,2]
[391717743,1760746999706,-500.0,0.00026592,2]
[391717744,1760746999738,-500.0,0.00026592,2]
[391717745,1760746999768,-500.0,0.00026592,2]
[391717746,1760746999799,-500.0,0.00026592,2]
[391717747,1760746999831,-242.02865003,0.00026592,2]
[391717748,1760746999865,-15.95269994,0.00026592,2]
[391717749,1760746999983,-484.04730006,0.00026592,2]
[391717750,1760747000014,-500.0,0.00026592,2]
[391717751,1760747000045,-500.0,0.00026592,2]
[391717752,1760747000076,-500.0,0.00026592,2]
[391717753,1760747000107,-514.7,0.00026592,2]
[391717754,1760747002137,-161.29577784,0.00026593,2]
[391717755,1760747002731,-4419.67149844,0.00026593,2]
[391717756,1760747008917,-10000.01,0.00026583,2]
[391717757,1760747009063,-10000.01,0.00026583,2]
[391717758,1760747009199,-10000.01,0.00026583,2]
[391717759,1760747009344,-10000.01,0.00026583,2]
[391717760,1760747009475,-10000.01,0.00026583,2]
[391717761,1760747009605,-10000.01,0.00026583,2]
[391717762,1760747009756,-10000.01,0.00026583,2]
[391717768,1760747023282,5000.0,0.00025205,2]
[391717769,1760747046278,5000.0,0.00025205,2]
[391717770,1760747052814,0.01,0.00019445,2]
[391717771,1760747052845,149.99,0.00019445,2]
[391717772,1760747053208,150.0,0.00020371,2]
[391717773,1760747053608,150.0,0.00021297,2]
[391717774,1760747057426,597.10924778,0.00021988,2]
[391717775,1760747057519,153.17,0.00022223,2]
[391717776,1760747058018,191.47,0.00023149,2]
[391717777,1760747058486,200.0,0.00024075,2]
[391717778,1760747058516,29.76,0.00024075,2]
[391717779,1760747058886,268.06,0.00025001,2]
[391717780,1760747058925,43502.33577,0.00033874,60]
[391717781,1760747069015,1020.39325895,0.00025205,2]
[391717782,1760747131200,150.0,0.00019431,2]
[391717784,1760747131565,150.0,0.00020356,2]
[391717785,1760747132060,150.0,0.00021282,2]
[391717786,1760747132475,150.0,0.00022207,2]
[391717787,1760747132973,150.0,0.00023132,2]
[391717788,1760747133387,150.0,0.00024058,2]
[391717789,1760747133837,152.91,0.00024983,2]
[391717790,1760747151359,-174.75,0.00025908,2]
[391717791,1760747151392,-420.987151,0.00026247,2]
[391717792,1760747151427,-168.0,0.00026276,2]
[391717793,1760747151459,-738.71087761,0.00026433,2]
[391717794,1760747151491,-1469.7737754,0.00026483,2]
[391717795,1760747151521,-300.0,0.00026572,2]
[391717796,1760747151551,-300.0,0.00026572,2]
[391717797,1760747151582,-300.0,0.00026572,2]
[391717798,1760747151612,-300.0,0.00026572,2]
[391717799,1760747151643,-455.56639198,0.00026572,2]
[391717800,1760747151942,-744.43360802,0.00026572,2]
[391717801,1760747151982,-655.34,0.00026573,3]
[391717802,1760747152014,-600.73,0.00026573,3]
[391717803,1760747152044,-300.36,0.00026573,3]
[391717804,1760747152074,-150.18,0.00026573,3]
[391717805,1760747152103,-450.58,0.00026573,3]
[391717806,1760747152132,-287.17959932,0.00026582,2]
[391717807,1760747152163,-500.0,0.00026582,2]
[391717808,1760747152194,-176.07939621,0.00026582,2]
[391717809,1760747152227,-500.0,0.00026582,2]
[391717810,1760747152261,-500.0,0.00026582,2]
[391717811,1760747152395,-500.0,0.00026582,2]
[391717812,1760747152427,-500.0,0.00026582,2]
[391717813,1760747152460,-500.0,0.00026582,2]
[391717814,1760747152492,-500.0,0.00026582,2]
[391717815,1760747152523,-500.0,0.00026582,2]
[391717816,1760747152554,-500.0,0.00026582,2]
[391717817,1760747152585,-500.0,0.00026582,2]
[391717818,1760747152617,-500.0,0.00026582,2]
[391717819,1760747152648,-500.0,0.00026582,2]
[391717820,1760747152678,-500.0,0.00026582,2]
[391717821,1760747152731,-500.0,0.00026582,2]
[391717822,1760747152767,-500.0,0.00026582,2]
[391717823,1760747152799,-500.0,0.00026582,2]
[391717824,1760747152994,-607.66399339,0.00026582,2]
[391717825,1760747153028,-500.0,0.00026582,2]
[391717826,1760747153062,-500.0,0.00026582,2]
[391717827,1760747153099,-500.0,0.00026582,2]
[391717828,1760747153134,-500.0,0.00026582,2]
[391717829,1760747153168,-500.0,0.00026582,2]
[391717830,1760747153203,-284.68201322,0.00026582,2]
[391717831,1760747153299,-215.31798678,0.00026582,2]
[391717832,1760747153337,-500.0,0.00026582,2]
[391717833,1760747153372,-500.0,0.00026582,2]
[391717834,1760747153408,-159.27345871,0.00026582,2]
[391717835,1760747153444,-500.0,0.00026582,2]
[391717836,1760747153480,-500.0,0.00026582,2]
[391717837,1760747153515,-500.0,0.00026582,2]
[391717838,1760747153549,-500.0,0.00026582,2]
[391717839,1760747153583,-500.0,0.00026582,2]
[391717840,1760747153619,-500.0,0.00026582,2]
[391717841,1760747153653,-500.0,0.00026582,2]
[391717842,1760747153780,-500.0,0.00026582,2]
[391717843,1760747155527,-6762.52203777,0.00026583,2]
[391717844,1760747155549,-10000.01,0.00026583,2]
[391717845,1760747155573,-10000.01,0.00026583,2]
[391717846,1760747155611,-10000.01,0.00026583,2]
[391717847,1760747156038,-10000.01,0.00026583,2]
[391717848,1760747156060,-10000.01,0.00026583,2]
[391717849,1760747156078,-10000.01,0.00026583,2]
[391717850,1760747156095,-10000.01,0.00026583,2]
[391717851,1760747156112,-10000.01,0.00026583,2]
[391717852,1760747157349,-10000.01,0.00026583,2]
[391717853,1760747166330,-500.0,0.000253,2]
[391717854,1760747166365,-195.33063271,0.00026396,2]
[391717855,1760747166399,-3796.38,0.000265,14]
[391717856,1760747166478,-1016.58873458,0.00026573,10]
[391717857,1760747166523,-270.54126542,0.00026573,10]
[391717858,1760747166555,-300.0,0.00026582,2]
[391717859,1760747166638,-8858.92746916,0.00026583,2]
[391717860,1760747166659,-10000.01,0.00026583,2]
[391717861,1760747166735,-10000.01,0.00026583,2]
[391717862,1760747166864,-10000.01,0.00026583,2]
[391717863,1760747167038,-10000.01,0.00026583,2]
[391717864,1760747167163,-10000.01,0.00026583,2]
[391717865,1760747167303,-10000.01,0.00026583,2]
[391717866,1760747169360,-10000.01,0.00026583,2]
[391717867,1760747169499,-10000.01,0.00026583,2]
[391717868,1760747180751,5000.0,0.00024953,2]
[391717869,1760747185164,-242.82966405,0.00025793,2]
[391717870,1760747186557,-1045.280731,0.00025793,2]
[391717871,1760747189035,177.87594174,0.00025205,2]
[391717872,1760747189759,-217.5,0.00025793,2]
[391717873,1760747191757,-178.24,0.00025793,2]
[391717874,1760747194005,-174.47272705,0.00025793,2]
[391717875,1760747201687,150.0,0.00019522,2]
[391717876,1760747202202,150.0,0.00020452,2]
[391717877,1760747202462,-195.0,0.00025793,2]
[391717878,1760747202598,150.0,0.00021381,2]
[391717879,1760747203017,150.0,0.00022311,2]
[391717880,1760747235096,4222.13405826,0.00021962,2]
[391717881,1760747235121,5749.24259168,0.00021962,2]
[391717882,1760747247537,257.25,0.0001551,2]
[391717883,1760747248468,3993.51740832,0.00025205,2]
[391717884,1760747248492,1006.48259168,0.00025205,2]
[391717885,1760747261502,8993.52740832,0.000199,2]
[391717886,1760747261527,10000.01,0.000199,2]
[391717887,1760747261551,10000.01,0.000199,2]
[391717888,1760747261578,1038.74715091,0.000199,2]
[391717890,1760747268515,8961.26284909,0.00018,2]
[391717891,1760747268541,10000.01,0.00018,2]
[391717892,1760747268565,10000.01,0.00018,2]
[391717893,1760747268591,10000.01,0.00018,2]
[391717894,1760747268616,7994.78863667,0.00018,2]
[391717895,1760747271240,2005.22136333,0.00025205,2]
[391717896,1760747271262,2994.77863667,0.00025205,2]
[391717897,1760747272377,7005.23136333,0.00018,2]
[391717898,1760747272402,2630.83602349,0.00018,2]
[391717899,1760747275487,300.0,0.000223,2]
[391717902,1760747288549,300.0,0.000223,2]
[391717904,1760747294989,5000.0,0.00025205,2]
[391717906,1760747300961,300.0,0.000223,2]
[391717907,1760747302252,1469.17397651,0.000176,2]
[391717908,1760747302276,643.73345118,0.000176,2]
[391717910,1760747307864,-548.64435309,0.00025205,2]
[391717911,1760747309577,8902.72129382,0.0002,2]
[391717912,1760747309601,3992.20750245,0.0002,2]
[391717913,1760747311374,5364.06904637,0.00017,2]
[391717914,1760747311400,10000.01,0.00017,2]
[391717915,1760747311424,10000.01,0.00017,2]
[391717916,1760747311447,10000.01,0.00017,2]
[391717917,1760747311473,10000.01,0.00017,2]
[391717918,1760747311497,10000.01,0.00017,2]
[391717919,1760747311519,10000.01,0.00017,2]
[391717920,1760747311543,10000.01,0.00017,2]
[391717921,1760747311568,10000.01,0.00017,2]
[391717922,1760747311591,24862.10573467,0.00017,2]
[391717923,1760747312825,560.35392602,0.00018,5]
[391717924,1760747314113,1374.07829913,0.0002061,2]
[391717925,1760747315263,3400.08373163,0.00025,2]
[391717926,1760747315346,588.28712567,0.000149,2]
[391717927,1760747315565,1000.0,0.0001,2]
[391717928,1760747316104,3637.56084357,0.00018,2]
[391717929,1760747316129,25335.88349634,0.00018,2]
[391717931,1760747318037,271.84207013,0.00024,7]
[391717932,1760747318194,5000.0,0.00024953,2]
[391717933,1760747318880,3117.50609362,0.0002,2]
[391717934,1760747321381,1610.66183625,0.0002465,2]
[391717935,1760747321405,10000.01,0.0002465,2]
[391717936,1760747321431,10000.01,0.0002465,2]
[391717937,1760747321455,8522.34827844,0.0002465,2]
[391717938,1760747322510,1477.66172156,0.0001,2]
[391717939,1760747322533,864.44185839,0.0001,2]
[391717940,1760747323632,9135.56814161,0.00024142,2]
[391717941,1760747323655,10000.01,0.00024142,2]
[391717942,1760747323678,10000.01,0.00024142,2]
[391717943,1760747323699,10000.01,0.00024142,2]
[391717944,1760747323720,2760.37922099,0.00024142,2]
[391717946,1760747323758,260.95728312,0.00015,2]
[391717947,1760747324513,300.0,0.000223,2]
[391717948,1760747328243,300.0,0.000223,2]
[391717949,1760747336826,300.0,0.000223,2]
[391717950,1760747341375,300.0,0.000223,2]
[391717951,1760747359865,157.0,9.3e-07,2]
[391717952,1760747362426,-157.6976018,0.00025426,2]
[391717953,1760747362454,-2672.8755884,0.00025793,2]
[391717954,1760747362983,-4338.8636196,0.00025793,2]
[391717955,1760747363013,-630.94100605,0.00025805,2]
[391717956,1760747365350,-300.0,0.00025999,2]
[391717957,1760747365378,-2456.54572117,0.00026,30]
[391717958,1760747365409,-161.0,0.00026,5]
[391717959,1760747365439,-406.954246,0.00026247,2]
[391717960,1760747365468,-153.0,0.00026263,2]
[391717961,1760747365496,-153.0,0.00026263,2]
[391717962,1760747365525,-1200.0,0.00026404,2]
[391717963,1760747368393,-713.23765901,0.00026405,2]
[391717964,1760747368422,-837.17612802,0.00026493,2]
[391717965,1760747368452,-500.0,0.00026572,2]
[391717966,1760747368483,-500.0,0.00026572,2]
[391717967,1760747368512,-526.69374521,0.00026572,2]
[391717968,1760747370673,164.835611,0.00024953,2]
[391717969,1760747371420,-4835.164389,0.00024953,2]
[391717970,1760747374476,-300.0,0.000223,2]
[391717971,1760747377428,-1286.05205351,0.00026473,2]
[391717972,1760747380457,-5000.0,0.00024953,2]
[391717973,1760747386546,-300.0,0.000223,2]
[391717974,1760747386575,-1000.0,0.00025661,5]
[391717975,1760747387167,-9880.79702647,0.00026573,2]
[391717976,1760747387237,-10000.01,0.00026573,2]
[391717977,1760747387262,-10000.01,0.00026573,2]
[391717978,1760747387304,-10000.01,0.00026573,2]
[391717979,1760747387386,-916.48039887,0.00026573,2]
[391717980,1760747387424,-8167.04920226,0.00026573,2]
[391717981,1760747387541,-664.70720869,0.00026573,2]
[391717982,1760747387583,-8670.59558262,0.00026573,2]
[391717983,1760747387637,-4571.56742932,0.00026573,2]
[391717984,1760747387666,-856.87514136,0.00026573,2]
[391717985,1760747389560,-1072.61,0.00026573,10]
[391717986,1760747389597,-893.84,0.00026573,10]
[391717987,1760747389663,-6067.11,0.00026583,2]
[391717988,1760747389693,-10000.01,0.00026583,2]
[391717989,1760747389756,-10000.01,0.00026583,2]
[391717990,1760747392704,-10000.01,0.00026583,2]
[391717991,1760747392929,-10000.01,0.00026583,2]
[391717992,1760747393077,-10000.01,0.00026583,2]
[391717993,1760747393303,-10000.01,0.00026583,2]
[391717994,1760747393400,-10000.01,0.00026583,2]
[391717995,1760747393511,-10000.01,0.00026583,2]
[391717996,1760747393610,-10000.01,0.00026583,2]
[391717997,1760747393727,-10000.01,0.00026583,2]
[391717998,1760747395671,-10000.01,0.00026583,2]
[391717999,1760747402925,300.0,0.00029041,120]
[391718000,1760747404670,-150.0,0.0001956,2]
[391718001,1760747404702,-150.0,0.00020491,2]
[391718002,1760747404734,-150.0,0.00021422,2]
[391718003,1760747404767,-150.0,0.00022354,2]
[391718004,1760747404798,-150.0,0.00023285,2]
[391718005,1760747404829,-150.0,0.00024217,2]
[391718006,1760747404860,-744.87,0.00026573,10]
[391718007,1760747404888,-300.0,0.00026582,2]
[391718008,1760747404917,-300.0,0.00026582,2]
[391718009,1760747404945,-300.0,0.00026582,2]
[391718010,1760747405114,-1200.0,0.00026582,2]
[391718011,1760747405702,-3710.27,0.00026583,2]
[391718012,1760747405716,-1200.0,0.00026583,2]
[391718013,1760747405747,-7600.01,0.00026583,2]
[391718014,1760747405889,-10000.01,0.00026583,2]
[391718015,1760747405950,-10000.01,0.00026583,2]
[391718016,1760747405998,-10000.01,0.00026583,2]
[391718017,1760747406035,-10000.01,0.00026583,2]
[391718018,1760747406070,-10000.01,0.00026583,2]
[391718019,1760747406087,-10000.01,0.00026583,2]
[391718020,1760747406113,-10000.01,0.00026583,2]
[391718021,1760747410749,-5000.0,0.00024953,2]
[391718022,1760747410793,-0.01,0.00026573,2]
[391718023,1760747410893,-178.31,0.00026573,2]
[391718024,1760747410922,-151.0,0.00026577,2]
[391718025,1760747410958,-151.0,0.00026577,2]
[391718026,1760747410991,-151.0,0.00026577,2]
[391718027,1760747411022,-151.0,0.00026577,2]
[391718028,1760747411053,-211.64867116,0.00026577,2]
[391718029,1760747411083,-151.0,0.00026577,2]
[391718030,1760747411110,-181.08010149,0.00026577,2]
[391718031,1760747411139,-151.0,0.00026577,2]
[391718032,1760747411427,-7045.9324547,0.00026577,2]
[391718033,1760747411534,-10000.01,0.00026577,2]
[391718034,1760747411552,-3700.32082888,0.00026577,2]
[391718035,1760747411562,-151.0,0.00026577,2]
[391718036,1760747411571,-151.0,0.00026577,2]
[391718037,1760747411581,-5997.68917112,0.00026583,2]
[391718038,1760747411598,-10000.01,0.00026583,2]
[391718039,1760747411756,-10000.01,0.00026583,2]
[391718040,1760747411821,-10000.01,0.00026583,2]
[391718041,1760747411966,-151.0,0.00026577,2]
[391718042,1760747412003,-9698.01,0.00026583,2]
[391718043,1760747413767,-151.0,0.00026577,2]
[391718044,1760747413795,-196.15767209,0.00026577,2]
[391718045,1760747413824,-151.0,0.00026577,2]
[391718046,1760747413863,-151.0,0.00026577,2]
[391718047,1760747413892,-548.48396688,0.00026583,2]
[391718048,1760747413922,-2287.06905254,0.00026583,2]
[391718049,1760747414039,-3030.58861698,0.00026583,2]
[391718050,1760747431821,-5000.0,0.00024703,2]
[391718051,1760747431856,-0.01,0.00024953,2]
[391718052,1760747431927,-4142.62396166,0.00024953,2]
[391718061,1760747432127,-151.0,0.00026577,2]
[391718066,1760747432157,-151.0,0.00026577,2]
[391718068,1760747432187,-151.0,0.00026577,2]
[391718069,1760747432215,-151.0,0.00026577,2]
[391718072,1760747432242,-151.0,0.00026577,2]
[391718073,1760747432272,-53.76207668,0.00026577,2]
[391718081,1760747432344,-97.23792332,0.00026577,2]
[391718084,1760747432372,-277.94260134,0.00026577,2]
[391718088,1760747432399,-1000.0,0.00026577,2]
[391718092,1760747432427,-1000.0,0.00026577,2]
[391718093,1760747432454,-151.0,0.00026577,2]
[391718094,1760747432482,-1000.0,0.00026577,2]
[391718095,1760747432511,-1000.0,0.00026577,2]
[391718096,1760747432577,-1000.0,0.00026577,2]
[391718097,1760747432605,-1000.0,0.00026577,2]
[391718101,1760747432632,-1000.0,0.00026577,2]
[391718104,1760747432661,-1000.0,0.00026577,2]
[391718105,1760747432696,-1000.0,0.00026577,2]
[391718106,1760747432920,-1000.0,0.00026577,2]
[391718107,1760747432930,-468.12446282,0.00026577,2]
[391718108,1760747432940,-1000.0,0.00026577,2]
[391718109,1760747432949,-1000.0,0.00026577,2]
[391718110,1760747432959,-1000.0,0.00026577,2]
[391718111,1760747432968,-348.28551904,0.00026582,2]
[391718112,1760747432979,-738.71087761,0.00026583,2]
[391718113,1760747432991,-620.72,0.00026583,10]
[391718114,1760747433000,-4085.64401631,0.00026585,2]
[391718115,1760747433180,-44.886874,0.00026585,2]
[391718116,1760747433194,-997.03806589,0.00026585,2]
[391718117,1760747433204,-2.96193411,0.00026593,2]
[391718118,1760747433222,-0.01,0.00026593,2]
[391718119,1760747435000,-483.88000047,0.00026507,2]
[391718120,1760747435033,-1000.0,0.00026577,2]
[391718121,1760747435064,-1000.0,0.00026577,2]
[391718122,1760747435095,-1000.0,0.00026577,2]
[391718123,1760747435186,-3032.24999906,0.00026593,2]
[391718124,1760747435229,-5000.0,0.00024953,2]
[391718125,1760747435264,-0.01,0.00026593,2]
[391718126,1760747435355,-10000.01,0.00026593,2]
[391718153,1760747438418,-924.90358522,0.00026577,2]
[391718156,1760747438438,-75.09641478,0.00026577,2]
[391718158,1760747438450,-1000.0,0.00026577,2]
[391718160,1760747438460,-1000.0,0.00026577,2]
[391718162,1760747438470,-934.52552451,0.00026577,2]
[391718165,1760747438481,-65.47447549,0.00026577,2]
[391718167,1760747438491,-244.77154451,0.00026583,10]
[391718172,1760747440942,-3e-08,0.00026577,2]
[391718173,1760747440988,-999.99999997,0.00026577,2]
[391718174,1760747441019,-1000.0,0.00026577,2]
[391718175,1760747441047,-250.0,0.00026577,2]
[391718176,1760747441077,-1000.0,0.00026577,2]
[391718177,1760747441105,-1000.0,0.00026577,2]
[391718178,1760747441135,-250.0,0.00026577,2]
[391718179,1760747441164,-272.49845549,0.00026583,10]
[391718180,1760747441415,-455.01308908,0.00026577,2]
[391718181,1760747441441,-544.98691092,0.00026577,2]
[391718182,1760747441451,-250.0,0.00026577,2]
[391718183,1760747441460,-9205.02308908,0.00026593,2]
[391718217,1760747443823,-139.67067778,0.00026577,2]
[391718218,1760747443835,-860.32932222,0.00026577,2]
[391718219,1760747443845,-250.0,0.00026577,2]
[391718220,1760747443854,-1000.0,0.00026577,2]
[391718221,1760747443864,-250.0,0.00026577,2]
[391718222,1760747443874,-250.0,0.00026577,2]
[391718223,1760747443883,-390.77401056,0.00026577,2]
[391718224,1760747443926,-609.22598944,0.00026577,2]
[391718225,1760747443957,-1000.0,0.00026577,2]
[391718226,1760747444018,-6781.55802112,0.00026593,2]
[391718227,1760747444059,-250.0,0.00026577,2]
[391718228,1760747444100,-9500.01,0.00026593,2]
[391718229,1760747444174,-10000.01,0.00026593,2]
[391718256,1760747446936,-1000.0,0.00026577,2]
[391718257,1760747446947,-250.0,0.00026577,2]
[391718258,1760747446957,-250.0,0.00026577,2]
[391718259,1760747446967,-250.0,0.00026577,2]
[391718260,1760747446978,-250.0,0.00026577,2]
[391718261,1760747446992,-45574.26515831,0.00026593,2]
[391718262,1760747451409,5000.0,0.00025205,2]
[391718263,1760747459821,5000.0,0.00025205,2]
[391718264,1760747465370,0.01,0.00020839,2]
[391718265,1760747465395,149.99,0.00020839,2]
[391718266,1760747465773,150.0,0.00021831,2]
[391718267,1760747466205,178.52,0.00022824,2]